fUST/lending_fUST_20250117
["ID","MTS","AMOUNT","RATE_DAILY","PERIOD"]
[349343655,1737126662359,-709.44,0.00023013,3]
[349343656,1737126662369,-1056.5,0.00023013,3]
[349343657,1737126662379,-151.0,0.00023013,7]
[349343658,1737126662389,-368.26,0.00023013,3]
[349343659,1737126662398,-1169.0,0.00023013,3]
[349343660,1737126662408,-7971.37,0.00023013,3]
[349343661,1737126662417,-2711.06,0.00023013,3]
[349343662,1737126662426,-449.0,0.00023014,2]
[349343663,1737126662435,-157.53,0.00023024,2]
[349343664,1737126662445,-163.69790664,0.00023066,2]
[349343665,1737126662454,-4667.78184868,0.00023072,3]
[349343666,1737126662464,-167.06,0.00023093,2]
[349343667,1737126662474,-171812.76717773,0.000231,2]
[349343668,1737126662483,-7600.05,0.000231,2]
[349343669,1737126662494,-151.0,0.000231,7]
[349343670,1737126662506,-151.0,0.000231,7]
[349343671,1737126662593,-151.0,0.000231,7]
[349343672,1737126662603,-151.0,0.000231,7]
[349343673,1737126662614,-151.0,0.000231,7]
[349343674,1737126662624,-151.0,0.000231,7]
[349343675,1737126662634,-151.0,0.000231,7]
[349343676,1737126662643,-151.0,0.000231,7]
[349343677,1737126662653,-275.566581,0.000231,7]
[349343678,1737126662663,-151.0,0.000231,7]
[349343679,1737126662672,-151.0,0.000231,7]
[349343680,1737126662682,-191.532972,0.000231,7]
[349343681,1737126662691,-191.532972,0.000231,7]
[349343682,1737126662701,-151.0,0.000231,7]
[349343683,1737126662711,-163.890652,0.000231,7]
[349343684,1737126662721,-280.811699,0.000231,7]
[349343685,1737126662731,-163.890652,0.000231,7]
[349343686,1737126662744,-151.0,0.000231,7]
[349343687,1737126662754,-151.0,0.000231,7]
[349343688,1737126662763,-151.0,0.000231,7]
[349343689,1737126662773,-151.0,0.000231,7]
[349343690,1737126662783,-151.0,0.000231,7]
[349343691,1737126662792,-301.737227,0.000231,7]
[349343692,1737126662802,-151.0,0.000231,7]
[349343693,1737126662811,-163.69790664,0.00023131,2]
[349343694,1737126662821,-4667.78184868,0.00023141,3]
[349343695,1737126662830,-854.37,0.0002315,3]
[349343696,1737126662840,-500.0,0.0002315,3]
[349343697,1737126662850,-500.0,0.0002315,3]
[349343698,1737126662860,-500.0,0.0002315,3]
[349343699,1737126662870,-500.0,0.0002315,3]
[349343700,1737126662880,-500.0,0.0002315,3]
[349343701,1737126662890,-151.01885073,0.0002315,3]
[349343702,1737126662900,-500.0,0.0002315,3]
[349343703,1737126662910,-500.0,0.0002315,3]
[349343704,1737126662920,-281.611685,0.0002315,3]
[349343705,1737126662930,-500.0,0.0002315,2]
[349343706,1737126662940,-500.0,0.0002315,3]
[349343707,1737126662951,-1911.17,0.0002315,3]
[349343708,1737126662960,-500.0,0.0002315,3]
[349343709,1737126662969,-800.64,0.0002315,3]
[349343710,1737126662979,-1264.71,0.0002315,3]
[349343711,1737126662992,-1104.91,0.0002315,3]
[349343712,1737126663002,-151.77874897,0.0002315,3]
[349343713,1737126663012,-150.68117517,0.0002315,3]
[349343714,1737126663022,-2265.56,0.0002315,3]
[349343715,1737126663032,-642.34,0.0002315,3]
[349343716,1737126663043,-3842.83,0.0002315,3]
[349343717,1737126663054,-1628.16,0.0002315,3]
[349343718,1737126663065,-645.52,0.0002315,3]
[349343719,1737126663076,-709.44,0.0002315,3]
[349343720,1737126663087,-1056.5,0.0002315,3]
[349343721,1737126663097,-299.88,0.0002315,3]
[349343722,1737126663108,-500.0,0.0002315,3]
[349343723,1737126663118,-299.87,0.0002315,3]
[349343724,1737126663129,-1169.0,0.0002315,3]
[349343725,1737126663139,-7971.37,0.0002315,3]
[349343726,1737126663149,-2711.06,0.0002315,3]
[349343727,1737126663159,-163.69790664,0.00023197,2]
[349343728,1737126663169,-11489.64322783,0.000232,2]
[349343729,1737126663179,-4667.78184868,0.0002321,3]
[349343730,1737126663189,-1056.01444354,0.00023248,2]
[349343731,1737126663199,-1000.0,0.00023248,2]
[349343732,1737126663211,-163.69790664,0.00023262,2]
[349343733,1737126663222,-4667.78184868,0.00023279,3]
[349343734,1737126663233,-854.37,0.00023287,3]
[349343735,1737126663243,-500.0,0.00023287,3]
[349343736,1737126663255,-500.0,0.00023287,3]
[349343737,1737126663265,-500.0,0.00023287,3]
[349343738,1737126663275,-500.0,0.00023287,3]
[349343739,1737126663285,-500.0,0.00023287,3]
[349343740,1737126663297,-500.0,0.00023287,3]
[349343741,1737126663308,-500.0,0.00023287,2]
[349343742,1737126663319,-500.0,0.00023287,3]
[349343743,1737126663329,-1911.17,0.00023287,3]
[349343744,1737126663339,-410.99,0.00023287,3]
[349343745,1737126663349,-800.64,0.00023287,3]
[349343746,1737126663359,-1264.71,0.00023287,3]
[349343747,1737126663368,-1104.91,0.00023287,3]
[349343748,1737126663377,-2265.56,0.00023287,3]
[349343749,1737126663388,-3842.83,0.00023287,3]
[349343750,1737126663399,-1628.16,0.00023287,3]
[349343751,1737126663410,-645.52,0.00023287,3]
[349343752,1737126663421,-709.44,0.00023287,3]
[349343753,1737126663431,-1056.5,0.00023287,3]
[349343754,1737126663441,-1169.0,0.00023287,3]
[349343755,1737126663451,-7971.37,0.00023287,3]
[349343756,1737126663461,-2711.06,0.00023287,3]
[349343757,1737126663471,-151.0,0.000233,9]
[349343758,1737126663482,-163.69790664,0.00023328,2]
[349343759,1737126663494,-151.0,0.00023337,7]
[349343760,1737126663506,-7783.68861727,0.00023339,2]
[349343761,1737126663516,-5000.0,0.00023339,2]
[349343762,1737126663526,-5000.0,0.00023339,2]
[349343763,1737126663537,-5000.0,0.00023339,2]
[349343764,1737126663547,-4667.78184868,0.00023348,3]
[349343765,1737126663557,-300.0,0.000234,10]
[349343766,1737126663567,-4667.78184868,0.00023417,3]
[349343767,1737126663577,-950.31,0.00023424,3]
[349343768,1737126663586,-299.87,0.00023424,3]
[349343769,1737126663596,-299.86,0.00023424,3]
[349343770,1737126663606,-500.0,0.00023424,3]
[349343771,1737126663616,-151.0,0.00023424,7]
[349343772,1737126663625,-854.37,0.00023424,3]
[349343773,1737126663634,-500.0,0.00023424,3]
[349343774,1737126663644,-500.0,0.00023424,3]
[349343775,1737126663653,-500.0,0.00023424,3]
[349343776,1737126663662,-479.52,0.00023424,3]
[349343777,1737126663672,-500.0,0.00023424,3]
[349343778,1737126663682,-500.0,0.00023424,3]
[349343779,1737126663691,-500.0,0.00023424,2]
[349343780,1737126663701,-500.0,0.00023424,3]
[349343781,1737126663711,-1911.17,0.00023424,3]
[349343782,1737126663721,-151.0,0.00023424,7]
[349343783,1737126663731,-800.64,0.00023424,3]
[349343784,1737126663744,-1264.71,0.00023424,3]
[349343785,1737126663755,-151.0,0.00023424,7]
[349343786,1737126663765,-1104.91,0.00023424,3]
[349343787,1737126663775,-2265.56,0.00023424,3]
[349343788,1737126663785,-191.532972,0.00023424,7]
[349343789,1737126663796,-191.532972,0.00023424,7]
[349343790,1737126663806,-3842.83,0.00023424,3]
[349343791,1737126663816,-1628.16,0.00023424,3]
[349343792,1737126663826,-645.52,0.00023424,3]
[349343793,1737126663836,-709.44,0.00023424,3]
[349343794,1737126663846,-1056.5,0.00023424,3]
[349343795,1737126663856,-151.0,0.00023424,7]
[349343796,1737126663866,-151.0,0.00023424,7]
[349343797,1737126663876,-1169.0,0.00023424,3]
[349343798,1737126663886,-7971.37,0.00023424,3]
[349343799,1737126663897,-2711.06,0.00023424,3]
[349343800,1737126663907,-22556.50618562,0.00023436,2]
[349343801,1737126663917,-249.0,0.00023461,2]
[349343802,1737126663927,-249.0,0.00023463,2]
[349343803,1737126663937,-151.0,0.00023463,7]
[349343804,1737126663947,-4300.0,0.00023485,7]
[349343805,1737126663958,-151.0,0.00023485,7]
[349343806,1737126663969,-163.890652,0.00023485,7]
[349343807,1737126663979,-163.890652,0.00023485,7]
[349343808,1737126663992,-4667.78184868,0.00023486,3]
[349343809,1737126664002,-792.0,0.000235,30]
[349343810,1737126664013,-151.0,0.000235,5]
[349343811,1737126664023,-151.0,0.00023508,7]
[349343812,1737126664034,-4667.78184868,0.00023555,3]
[349343813,1737126664043,-854.37,0.00023561,3]
[349343814,1737126664054,-500.0,0.00023561,3]
[349343815,1737126664065,-500.0,0.00023561,3]
[349343816,1737126664075,-323.49,0.00023561,3]
[349343817,1737126664086,-151.0,0.00023561,7]
[349343818,1737126664097,-220.18512,0.00023561,7]
[349343819,1737126664107,-260.6896737,0.00023561,3]
[349343820,1737126664117,-500.0,0.00023561,3]
[349343821,1737126664127,-151.0,0.00023561,7]
[349343822,1737126664137,-183.70015474,0.00023561,2]
[349343823,1737126664147,-500.0,0.00023561,3]
[349343824,1737126664158,-1911.17,0.00023561,3]
[349343825,1737126664169,-800.64,0.00023561,3]
[349343826,1737126664178,-1264.71,0.00023561,3]
[349343827,1737126664189,-1104.91,0.00023561,3]
[349343828,1737126664199,-2265.56,0.00023561,3]
[349343829,1737126664209,-3842.83,0.00023561,3]
[349343830,1737126664221,-1628.16,0.00023561,3]
[349343831,1737126664303,-645.52,0.00023561,3]
[349343832,1737126664314,-243.798089,0.00023561,7]
[349343833,1737126664324,-151.0,0.00023561,7]
[349343834,1737126664334,-167.537144,0.00023561,7]
[349343835,1737126664343,-709.44,0.00023561,3]
[349343836,1737126664352,-1056.5,0.00023561,3]
[349343837,1737126664363,-151.0,0.00023561,7]
[349343838,1737126664373,-1169.0,0.00023561,3]
[349343839,1737126664384,-7971.37,0.00023561,3]
[349343840,1737126664394,-2711.06,0.00023561,3]
[349343841,1737126664405,-2000.0,0.000236,2]
[349343842,1737126664415,-2000.0,0.000236,2]
[349343843,1737126664425,-1006.55522131,0.000236,10]
[349343844,1737126664435,-13317.92086844,0.00023614,59]
[349343845,1737126664445,-9181.64764921,0.00023614,59]
[349343846,1737126664456,-1502.23887962,0.00023622,2]
[349343847,1737126664467,-4667.78184868,0.00023624,3]
[349343848,1737126664477,-8812.54687736,0.0002363,30]
[349343849,1737126664487,-160.0,0.0002364,3]
[349343850,1737126664497,-160.0,0.0002364,5]
[349343851,1737126664509,-500.00374122,0.00023673,2]
[349343852,1737126664520,-161.4892262,0.00023673,2]
[349343853,1737126664530,-500.0,0.00023673,2]
[349343854,1737126664540,-500.0,0.00023673,2]
[349343855,1737126664551,-500.3764192,0.00023673,2]
[349343856,1737126664561,-500.0,0.00023673,2]
[349343857,1737126664571,-500.0,0.00023673,2]
[349343858,1737126664580,-151.0,0.0002368,7]
[349343859,1737126664591,-151.0,0.00023684,7]
[349343860,1737126664600,-151.0,0.00023684,7]
[349343861,1737126664610,-184.983811,0.00023684,7]
[349343862,1737126664620,-151.0,0.00023689,7]
[349343863,1737126664631,-151.0,0.00023689,7]
[349343864,1737126664640,-151.0,0.00023689,7]
[349343865,1737126664651,-151.0,0.00023689,7]
[349343866,1737126664661,-151.0,0.00023689,7]
[349343867,1737126664671,-151.0,0.00023689,7]
[349343868,1737126664681,-151.0,0.00023689,7]
[349343869,1737126664691,-151.0,0.00023689,7]
[349343870,1737126664700,-138730.7563745,0.0002369,61]
[349343871,1737126664843,-2841.95768274,0.0002369,61]
[349343872,1737126664856,-2544.07441747,0.0002369,61]
[349343873,1737126664868,-171440.376959,0.0002369,61]
[349343874,1737126664880,-1171.94,0.0002369,61]
[349343875,1737126664971,-1200.0,0.00022678,2]
[349343876,1737126664981,-159690.70147747,0.0002369,61]
[349343877,1737126664994,-372.21519123,0.0002369,61]
[349343878,1737126665006,-2368.0,0.0002369,61]
[349343879,1737126691319,160.0,0.00023008,120]
[349343882,1737126860597,161.180793,0.00013973,2]
[349343909,1737127679178,4341.47533141,0.00016,2]
[349343952,1737127832928,-616.36912047,0.00018711,2]
[349343954,1737127832938,-340.12848348,0.000189,2]
[349343960,1737127832983,-276.24063699,0.000189,2]
[349343962,1737127832992,-600.0,0.00019855,2]
[349343964,1737127833001,-5197.1007852,0.000204,2]
[349343966,1737127833011,-300.0,0.00020444,2]
[349343968,1737127833020,-8200.7579143,0.00020445,2]
[349343970,1737127833030,-177.204197,0.00020581,2]
[349343972,1737127833039,-263.81932101,0.00021,2]
[349343974,1737127833051,-4797.79922741,0.00021,2]
[349343976,1737127833060,-249.60370923,0.00021817,2]
[349343978,1737127833073,-784.7045,0.0002189,3]
[349343980,1737127833084,-1103.07,0.000219,2]
[349343982,1737127833094,-180.607,0.000219,2]
[349343984,1737127833104,-5138.38648411,0.0002191,2]
[349343986,1737127833114,-500.0,0.00021917,3]
[349343988,1737127833124,-500.0,0.00021917,3]
[349343990,1737127833134,-500.0,0.00021917,3]
[349343992,1737127833143,-500.0,0.00021917,3]
[349343994,1737127833153,-500.0,0.00021917,3]
[349343996,1737127833163,-220.67333706,0.00021917,3]
[349343998,1737127833172,-500.0,0.00021917,3]
[349344000,1737127833182,-500.0,0.00021917,3]
[349344002,1737127833191,-500.0,0.00021917,3]
[349344004,1737127833200,-500.0,0.00021917,3]
[349344007,1737127833210,-629.12,0.00021917,3]
[349344008,1737127833219,-161.78935713,0.00021917,3]
[349344010,1737127833229,-243.48217825,0.00021917,3]
[349344013,1737127833239,-158.92932469,0.00021917,3]
[349344015,1737127833249,-1000.0,0.00021917,2]
[349344016,1737127833258,-500.0,0.00021917,3]
[349344018,1737127833268,-500.0,0.00021917,3]
[349344020,1737127833278,-500.0,0.00021917,3]
[349344021,1737127833287,-500.0,0.00021917,3]
[349344022,1737127833301,-500.0,0.00021917,3]
[349344023,1737127833311,-500.0,0.00021917,3]
[349344024,1737127833320,-500.0,0.00021917,3]
[349344025,1737127833329,-500.0,0.00021917,3]
[349344026,1737127833339,-560.7,0.00021917,3]
[349344027,1737127833348,-500.0,0.00021917,3]
[349344028,1737127833357,-500.0,0.00021917,2]
[349344029,1737127833367,-500.0,0.00021917,3]
[349344030,1737127833376,-500.0,0.00021917,3]
[349344031,1737127833386,-510.42339776,0.00021917,3]
[349344032,1737127833395,-500.0,0.00021917,3]
[349344033,1737127833404,-500.0,0.00021917,3]
[349344034,1737127833413,-500.0,0.00021917,3]
[349344035,1737127833423,-500.0,0.00021917,3]
[349344036,1737127833432,-500.0,0.00021917,3]
[349344037,1737127833441,-500.0,0.00021917,3]
[349344038,1737127833450,-500.0,0.00021917,3]
[349344039,1737127833459,-505.59250195,0.00021917,3]
[349344040,1737127833468,-500.0,0.00021917,3]
[349344041,1737127833478,-500.0,0.00021917,3]
[349344042,1737127833487,-490.19593004,0.00021917,3]
[349344043,1737127833497,-500.0,0.00021917,3]
[349344044,1737127833506,-508.72386539,0.00021917,3]
[349344045,1737127833515,-500.0,0.00021917,3]
[349344046,1737127833525,-500.0,0.00021917,3]
[349344052,1737127833670,-500.0,0.00021917,3]
[349344053,1737127833680,-500.0,0.00021917,3]
[349344054,1737127833690,-500.0,0.00021917,3]
[349344055,1737127833700,-500.0,0.00021917,3]
[349344057,1737127833710,-500.0,0.00021917,3]
[349344059,1737127833719,-500.0,0.00021917,3]
[349344061,1737127833729,-1334.26,0.00021917,3]
[349344063,1737127833739,-500.0,0.00021917,3]
[349344065,1737127833748,-500.0,0.00021917,3]
[349344067,1737127833758,-505.33301679,0.00021917,3]
[349344069,1737127833768,-503.97572086,0.00021917,3]
[349344071,1737127833777,-500.0,0.00021917,3]
[349344073,1737127833787,-1063.44,0.00021917,3]
[349344075,1737127833801,-500.0,0.00021917,3]
[349344077,1737127833813,-500.0,0.00021917,3]
[349344079,1737127833825,-500.0,0.00021917,3]
[349344081,1737127833835,-500.0,0.00021917,3]
[349344083,1737127833844,-500.0,0.00021917,3]
[349344085,1737127833854,-500.0,0.00021917,3]
[349344087,1737127833864,-500.0,0.00021917,3]
[349344089,1737127833874,-499.0,0.00021917,2]
[349344091,1737127833884,-500.0,0.00021917,3]
[349344093,1737127833894,-500.0,0.00021917,3]
[349344095,1737127833903,-500.0,0.00021917,3]
[349344097,1737127833914,-500.0,0.00021917,3]
[349344099,1737127833924,-2006.42471394,0.00021917,2]
[349344101,1737127833934,-500.0,0.00021917,3]
[349344103,1737127833943,-500.0,0.00021917,3]
[349344105,1737127833953,-500.0,0.00021917,3]
[349344107,1737127833963,-500.0,0.00021917,3]
[349344109,1737127833974,-500.0,0.00021917,3]
[349344111,1737127833985,-500.0,0.00021917,3]
[349344113,1737127833995,-4310.35,0.00021917,3]
[349344115,1737127834005,-500.0,0.00021917,3]
[349344117,1737127834015,-500.0,0.00021917,3]
[349344119,1737127834025,-500.0,0.00021917,3]
[349344121,1737127834036,-500.0,0.00021917,3]
[349344123,1737127834049,-501.58354436,0.00021917,3]
[349344125,1737127834059,-500.0,0.00021917,3]
[349344127,1737127834068,-500.0,0.00021917,3]
[349344129,1737127834078,-510.41590572,0.00021917,3]
[349344131,1737127834088,-500.0,0.00021917,3]
[349344133,1737127834098,-500.0,0.00021917,3]
[349344135,1737127834108,-500.0,0.00021917,3]
[349344137,1737127834118,-500.0,0.00021917,3]
[349344139,1737127834128,-500.0,0.00021917,3]
[349344141,1737127834138,-500.0,0.00021917,3]
[349344143,1737127834147,-500.0,0.00021917,3]
[349344145,1737127834158,-500.0,0.00021917,3]
[349344147,1737127834167,-500.0,0.00021917,3]
[349344149,1737127834176,-500.0,0.00021917,3]
[349344151,1737127834186,-500.85953805,0.00021917,3]
[349344153,1737127834196,-500.0,0.00021917,3]
[349344155,1737127834206,-819.86,0.00021917,3]
[349344157,1737127834215,-500.0,0.00021917,3]
[349344159,1737127834225,-247.48074962,0.00021917,3]
[349344161,1737127834235,-500.0,0.00021917,3]
[349344163,1737127834245,-489.25939537,0.00021917,3]
[349344165,1737127834255,-501.17967545,0.00021917,3]
[349344167,1737127834265,-500.0,0.00021917,3]
[349344169,1737127834274,-500.0,0.00021917,3]
[349344171,1737127834284,-500.0,0.00021917,3]
[349344173,1737127834296,-500.0,0.00021917,3]
[349344175,1737127834306,-500.69744651,0.00021917,3]
[349344177,1737127834316,-694.02,0.00021917,3]
[349344179,1737127834325,-500.0,0.00021917,3]
[349344181,1737127834335,-500.0,0.00021917,3]
[349344183,1737127834343,-500.0,0.00021917,3]
[349344185,1737127834353,-500.0,0.00021917,3]
[349344187,1737127834363,-1284.01,0.00021917,3]
[349344189,1737127834372,-2514.26,0.00021917,3]
[349344191,1737127834382,-502.71180506,0.00021917,3]
[349344193,1737127834392,-500.0,0.00021917,3]
[349344195,1737127834401,-500.0,0.00021917,3]
[349344197,1737127834411,-500.0,0.00021917,3]
[349344199,1737127834421,-500.0,0.00021917,3]
[349344201,1737127834431,-500.0,0.00021917,3]
[349344203,1737127834441,-500.0,0.00021917,3]
[349344205,1737127834451,-503.37074174,0.00021917,3]
[349344207,1737127834461,-500.0,0.00021917,3]
[349344209,1737127834471,-500.0,0.00021917,3]
[349344211,1737127834480,-500.0,0.00021917,3]
[349344213,1737127834491,-500.0,0.00021917,3]
[349344215,1737127834500,-500.0,0.00021917,3]
[349344217,1737127834510,-500.0,0.00021917,3]
[349344219,1737127834520,-500.0,0.00021917,3]
[349344221,1737127834530,-500.0,0.00021917,3]
[349344223,1737127834542,-500.0,0.00021917,3]
[349344225,1737127834554,-500.0,0.00021917,3]
[349344227,1737127834565,-500.0,0.00021917,3]
[349344229,1737127834579,-500.0,0.00021917,3]
[349344231,1737127834588,-500.0,0.00021917,3]
[349344233,1737127834598,-500.0,0.00021917,3]
[349344235,1737127834608,-500.0,0.00021917,3]
[349344237,1737127834618,-814.08,0.00021917,3]
[349344239,1737127834628,-500.0,0.00021917,3]
[349344241,1737127834639,-500.0,0.00021917,3]
[349344243,1737127834649,-500.0,0.00021917,3]
[349344245,1737127834659,-500.0,0.00021917,3]
[349344247,1737127834670,-500.0,0.00021917,3]
[349344249,1737127834682,-500.0,0.00021917,3]
[349344251,1737127834692,-500.0,0.00021917,3]
[349344253,1737127834702,-500.0,0.00021917,3]
[349344255,1737127834712,-500.0,0.00021917,3]
[349344257,1737127834722,-500.0,0.00021917,3]
[349344259,1737127834732,-500.0,0.00021917,3]
[349344261,1737127834742,-500.0,0.00021917,3]
[349344263,1737127834752,-500.0,0.00021917,3]
[349344265,1737127834762,-559.83723942,0.00021917,3]
[349344267,1737127834771,-500.0,0.00021917,3]
[349344269,1737127834781,-450.56579906,0.00021917,3]
[349344271,1737127834792,-500.0,0.00021917,3]
[349344273,1737127834806,-500.0,0.00021917,3]
[349344275,1737127834816,-500.0,0.00021917,3]
[349344277,1737127834825,-1000.0,0.00021917,3]
[349344279,1737127834835,-500.0,0.00021917,3]
[349344281,1737127834846,-500.0,0.00021917,3]
[349344283,1737127834855,-500.0,0.00021917,3]
[349344285,1737127834865,-500.0,0.00021917,3]
[349344287,1737127834876,-500.0,0.00021917,3]
[349344289,1737127834885,-500.0,0.00021917,3]
[349344291,1737127834895,-500.0,0.00021917,3]
[349344293,1737127834906,-500.0,0.00021917,3]
[349344295,1737127834917,-500.0,0.00021917,3]
[349344297,1737127834928,-500.0,0.00021917,3]
[349344299,1737127834939,-500.0,0.00021917,3]
[349344301,1737127834949,-500.0,0.00021917,3]
[349344303,1737127834959,-500.0,0.00021917,3]
[349344305,1737127834969,-500.0,0.00021917,3]
[349344307,1737127834980,-500.0,0.00021917,3]
[349344309,1737127834991,-243.6553158,0.00021917,3]
[349344311,1737127835004,-664.93,0.00021917,3]
[349344313,1737127835015,-500.0,0.00021917,3]
[349344315,1737127835025,-500.0,0.00021917,3]
[349344317,1737127835035,-500.71619713,0.00021917,3]
[349344319,1737127835053,-500.0,0.00021917,3]
[349344321,1737127835065,-500.0,0.00021917,3]
[349344323,1737127835075,-500.0,0.00021917,3]
[349344325,1737127835085,-500.0,0.00021917,3]
[349344327,1737127835096,-500.0,0.00021917,3]
[349344329,1737127835108,-500.0,0.00021917,3]
[349344331,1737127835118,-500.0,0.00021917,3]
[349344333,1737127835128,-500.0,0.00021917,3]
[349344335,1737127835139,-500.0,0.00021917,3]
[349344337,1737127835150,-500.0,0.00021917,3]
[349344339,1737127835162,-500.0,0.00021917,3]
[349344341,1737127835171,-500.0,0.00021917,3]
[349344343,1737127835182,-500.0,0.00021917,3]
[349344345,1737127835191,-500.0,0.00021917,3]
[349344347,1737127835201,-500.0,0.00021917,3]
[349344349,1737127835211,-504.50171401,0.00021917,3]
[349344351,1737127835220,-500.0,0.00021917,3]
[349344353,1737127835229,-500.0,0.00021917,3]
[349344355,1737127835239,-500.0,0.00021917,3]
[349344357,1737127835248,-500.0,0.00021917,3]
[349344359,1737127835258,-500.0,0.00021917,3]
[349344361,1737127835268,-500.0,0.00021917,3]
[349344363,1737127835277,-500.0,0.00021917,3]
[349344365,1737127835287,-622.09601229,0.00021917,3]
[349344367,1737127835301,-500.0,0.00021917,3]
[349344369,1737127835311,-500.0,0.00021917,3]
[349344371,1737127835321,-500.0,0.00021917,3]
[349344373,1737127835331,-500.0,0.00021917,3]
[349344375,1737127835341,-508.33129673,0.00021917,3]
[349344377,1737127835351,-1317.69,0.00021917,3]
[349344379,1737127835361,-1317.69,0.00021917,3]
[349344381,1737127835371,-1317.69,0.00021917,3]
[349344383,1737127835381,-1317.69,0.00021917,3]
[349344385,1737127835391,-1317.69,0.00021917,3]
[349344388,1737127835401,-1317.69,0.00021917,3]
[349344389,1737127835411,-500.0,0.00021917,3]
[349344392,1737127835422,-1317.69,0.00021917,3]
[349344393,1737127835432,-1317.69,0.00021917,3]
[349344395,1737127835442,-1317.69,0.00021917,3]
[349344398,1737127835453,-1317.69,0.00021917,3]
[349344400,1737127835464,-1317.69,0.00021917,3]
[349344402,1737127835474,-1317.69,0.00021917,3]
[349344404,1737127835484,-1317.69,0.00021917,3]
[349344406,1737127835493,-1317.69,0.00021917,3]
[349344408,1737127835504,-1317.69,0.00021917,3]
[349344410,1737127835514,-1317.69,0.00021917,3]
[349344412,1737127835524,-1317.69,0.00021917,3]
[349344414,1737127835534,-1317.69,0.00021917,3]
[349344415,1737127835546,-500.0,0.00021917,3]
[349344417,1737127835555,-500.0,0.00021917,3]
[349344420,1737127835564,-500.0,0.00021917,3]
[349344422,1737127835575,-500.0,0.00021917,3]
[349344424,1737127835588,-500.0,0.00021917,3]
[349344425,1737127835597,-500.0,0.00021917,3]
[349344427,1737127835606,-500.0,0.00021917,3]
[349344429,1737127835615,-500.0,0.00021917,3]
[349344431,1737127835624,-504.34364401,0.00021917,3]
[349344433,1737127835634,-500.0,0.00021917,3]
[349344435,1737127835643,-500.0,0.00021917,3]
[349344437,1737127835652,-398.02078167,0.00021917,3]
[349344439,1737127835665,-500.0,0.00021917,3]
[349344441,1737127835675,-500.0,0.00021917,3]
[349344443,1737127835684,-500.0,0.00021917,3]
[349344445,1737127835694,-500.0,0.00021917,3]
[349344447,1737127835703,-500.0,0.00021917,3]
[349344449,1737127835713,-500.0,0.00021917,3]
[349344451,1737127835722,-500.0,0.00021917,3]
[349344454,1737127835732,-500.0,0.00021917,3]
[349344455,1737127835742,-500.0,0.00021917,3]
[349344458,1737127835752,-500.0,0.00021917,3]
[349344460,1737127835761,-500.0,0.00021917,3]
[349344462,1737127835771,-500.0,0.00021917,3]
[349344464,1737127835781,-500.0,0.00021917,3]
[349344466,1737127835791,-500.0,0.00021917,3]
[349344468,1737127835804,-500.0,0.00021917,3]
[349344470,1737127835813,-500.0,0.00021917,3]
[349344471,1737127835822,-500.0,0.00021917,3]
[349344473,1737127835832,-500.0,0.00021917,3]
[349344475,1737127835841,-500.0,0.00021917,3]